bitfinex/quotes_BTCUSD_20240627
["timestamp","ask_amount","ask_price","bid_price","bid_amount"]
[1719493441703,0.162559,61516.0,61515.0,0.00081233]
[1719493441863,0.487645,61520.0,61519.0,0.00081233]
[1719493442082,0.162567,61513.0,61512.0,0.00081233]
[1719493442421,0.25002261,61518.0,61514.0,0.00081233]
[1719493442664,0.16254,61523.0,61522.0,0.08211579]
[1719493442902,0.325033,61533.0,61522.0,0.24445477]
[1719493442903,0.48782074,61533.0,61522.0,0.24445477]
[1719493443091,0.390127,61539.0,61529.0,0.08211579]
[1719493443092,0.487566,61530.0,61529.0,0.08211579]
[1719493443302,0.325018,61535.0,61534.0,0.00081233]
[1719493443597,0.812545,61535.0,61534.0,0.16315131]
[1719493443815,0.487527,61535.0,61534.0,0.16233898]
[1719493444016,0.325008,61537.0,61534.0,0.16233898]
[1719493444017,0.147403,61537.0,61536.0,0.00081233]
[1719493444220,0.0638,61550.0,61535.0,0.16233898]
[1719493444221,0.487519,61536.0,61535.0,0.16233898]
[1719493444439,0.68782074,61557.0,61548.0,0.00081233]
[1719493444440,0.324904,61557.0,61548.0,0.00081233]
[1719493444615,0.324904,61557.0,61536.0,0.184]
[1719493444616,0.487408,61550.0,61549.0,0.16233898]
[1719493444836,0.324896,61559.0,61552.0,0.00081233]
[1719493444837,0.487387,61553.0,61552.0,0.00081233]
[1719493445034,0.2,61577.0,61553.0,0.00081233]
[1719493445035,0.812292,61554.0,61553.0,0.00081233]
[1719493445257,0.812292,61554.0,61553.0,0.16233898]
[1719493445486,0.0219,61567.0,61538.0,0.01]
[1719493445487,0.324969,61545.0,61538.0,0.00081233]
[1719493445733,0.162489,61543.0,61542.0,0.00081233]
[1719493445954,0.162493,61541.0,61540.0,0.00081233]
[1719493446179,0.162493,61541.0,61539.0,0.16233898]
[1719493446180,1.137468,61540.0,61539.0,0.16315131]
[1719493446396,0.1137468,61540.0,61528.0,0.4657]
[1719493446615,0.0638,61546.0,61529.0,0.00081233]
[1719493446616,0.81261,61530.0,61529.0,0.00081233]
[1719493446906,0.81261,61530.0,61529.0,0.16315131]
[1719493447114,0.81261,61530.0,61529.0,0.16254395]
[1719493447115,0.80445,61530.0,61529.0,0.16254395]
[1719493447320,0.002,61533.0,61529.0,0.16254395]
[1719493447321,0.162521,61531.0,61529.0,0.16254395]
[1719493447532,0.325034,61532.0,61522.0,0.08130346]
[1719493447533,0.002,61533.0,61532.0,0.00020497]
[1719493447756,0.489542,61533.0,61532.0,0.16254395]
[1719493447967,1.137598,61533.0,61532.0,0.16233898]
[1719493448402,1.137598,61533.0,61532.0,0.16254395]
[1719493448403,0.81257,61533.0,61532.0,0.16254395]
[1719493448607,0.81257,61533.0,61532.0,0.16233898]
[1719493448815,0.81257,61533.0,61523.0,0.00020497]
[1719493448816,0.181257,61533.0,61523.0,0.00020497]
[1719493449023,0.01,61537.0,61524.0,0.16233898]
[1719493449024,0.487606,61525.0,61524.0,0.16233898]
[1719493449226,0.812677,61525.0,61524.0,0.16254395]
[1719493449435,1.137748,61525.0,61524.0,0.16233898]
[1719493449868,0.12802249,61525.0,61515.0,0.08130346]
[1719493450072,0.487677,61516.0,61515.0,0.08150843]
[1719493450283,0.812795,61516.0,61515.0,0.08150843]
[1719493450497,0.425072,61525.0,61515.0,0.08150843]
[1719493450498,0.262535,61525.0,61524.0,0.00020497]
[1719493450700,0.262535,61525.0,61515.0,0.08130346]
[1719493450701,0.487621,61523.0,61522.0,0.00020497]
[1719493450905,0.812702,61523.0,61522.0,0.16233898]
[1719493451115,0.912702,61523.0,61522.0,0.16233898]
[1719493451319,0.16254,61523.0,61522.0,0.16233898]
[1719493451523,0.0767,61537.0,61522.0,0.16233898]
[1719493451524,0.1,61530.0,61529.0,0.00020497]
[1719493451728,0.587566,61530.0,61529.0,0.16233898]
[1719493451936,0.91261,61530.0,61529.0,0.16233898]
[1719493452365,0.587566,61530.0,61529.0,0.16233898]
[1719493452814,0.0648,61543.0,61536.0,0.00020497]
[1719493453035,0.0119,61545.0,61541.0,0.08130346]
[1719493453036,0.16249,61542.0,61541.0,0.08130346]
[1719493453281,0.487471,61542.0,61541.0,0.24364244]
[1719493453486,0.912452,61542.0,61541.0,0.24364244]
[1719493453690,0.912452,61542.0,61541.0,0.16233898]
[1719493453911,0.812597,61531.0,61530.0,0.08130346]
[1719493454122,0.812597,61531.0,61530.0,0.16254395]
[1719493454373,0.1,61542.0,61530.0,0.16254395]
[1719493454585,0.324942,61550.0,61532.0,0.00020497]
[1719493454586,0.325023,61534.0,61532.0,0.00020497]
[1719493454783,0.325006,61538.0,61536.0,0.00020497]
[1719493454938,0.587513,61537.0,61536.0,0.00020497]
[1719493455144,0.162503,61537.0,61536.0,0.00020497]
[1719493455380,0.48751,61537.0,61536.0,0.00020497]
[1719493455748,0.324942,61550.0,61547.0,0.00020497]
[1719493455956,0.324942,61550.0,61537.0,0.0769]
[1719493455957,0.48782074,61558.0,61552.0,0.00020497]
[1719493456157,0.162458,61554.0,61553.0,0.16254395]
[1719493456362,0.06529147,61570.0,61556.0,0.00020497]
[1719493456606,0.162458,61554.0,61553.0,0.16233898]
[1719493456932,0.162458,61554.0,61553.0,0.16254395]
[1719493457360,0.162441,61561.0,61560.0,0.00020497]
[1719493457565,0.48782074,61575.0,61561.0,0.08130346]
[1719493457765,0.162435,61563.0,61562.0,0.16233898]
[1719493457971,0.333181,61579.0,61562.0,0.16233898]
[1719493458178,0.487194,61577.0,61576.0,0.00020497]
[1719493458381,0.00839,61579.0,61568.0,0.08130346]
[1719493458382,0.162403,61575.0,61574.0,0.00020497]
[1719493458554,0.48721,61575.0,61574.0,0.16254395]
[1719493458759,0.812017,61575.0,61574.0,0.16254395]
[1719493459719,0.1,61575.0,61574.0,0.17879834]
[1719493459928,0.162403,61575.0,61574.0,0.16254395]
[1719493460133,0.00839,61579.0,61574.0,0.16254395]
[1719493460332,0.495573,61579.0,61578.0,0.00020497]
[1719493460536,0.495573,61579.0,61574.0,0.00020497]
[1719493460537,0.162403,61575.0,61574.0,0.00020497]
[1719493460742,0.324791,61578.0,61574.0,0.00020497]
[1719493460743,0.162399,61577.0,61574.0,0.00720497]
[1719493460989,0.324791,61578.0,61574.0,0.007]
[1719493461177,0.170783,61579.0,61578.0,0.00020497]
[1719493461311,0.495569,61579.0,61578.0,0.00020497]
[1719493461515,0.30774928,61576.0,61568.0,0.08130346]
[1719493461728,0.00839,61579.0,61578.0,0.00020497]
[1719493462107,0.00839,61579.0,61578.0,0.26054395]
[1719493462422,0.00839,61579.0,61578.0,0.27054395]
[1719493462547,0.00839,61579.0,61578.0,0.29354395]
[1719493462750,0.00839,61579.0,61578.0,0.45593895]
[1719493462951,0.32473,61590.0,61589.0,0.00020497]
[1719493463162,0.00084,61594.0,61593.0,0.00020497]
[1719493463373,0.00084,61594.0,61593.0,0.16254395]
[1719493464618,0.163193,61594.0,61593.0,0.16254395]
[1719493464845,0.487899,61594.0,61593.0,0.16254395]
[1719493465048,0.487899,61594.0,61593.0,0.16233898]
[1719493465049,0.812605,61594.0,61593.0,0.16233898]
[1719493465466,0.812605,61594.0,61593.0,0.16254395]
[1719493465667,0.00084,61594.0,61593.0,0.19622835]
[1719493465893,0.163193,61594.0,61593.0,0.19622835]
[1719493466232,0.00084,61594.0,61593.0,0.19622835]
[1719493467026,0.487899,61594.0,61593.0,0.16254395]
[1719493467228,0.812605,61594.0,61593.0,0.16203598]
[1719493467427,0.812605,61594.0,61584.0,0.00020497]
[1719493467428,0.811885,61585.0,61584.0,0.00020497]
[1719493467634,0.811885,61585.0,61584.0,0.16254395]
[1719493467863,0.487131,61585.0,61584.0,0.20368869]
[1719493468065,0.811885,61585.0,61584.0,0.16254395]
[1719493468899,0.324801,61576.0,61575.0,0.08150843]
[1719493469106,0.487201,61576.0,61575.0,0.24384741]
[1719493469321,0.10084,61594.0,61575.0,0.24384741]
[1719493469322,0.324743,61587.0,61586.0,0.00020497]
[1719493469523,0.811857,61587.0,61586.0,0.16254395]
[1719493469696,0.587114,61587.0,61586.0,0.16254395]
[1719493469941,0.587114,61587.0,61584.0,0.014]
[1719493469942,0.911857,61587.0,61584.0,0.014]
[1719493470117,1.136639,61585.0,61584.0,0.014]
[1719493470319,1.236639,61585.0,61584.0,0.014]
[1719493470879,0.587131,61585.0,61584.0,0.17633898]
[1719493471081,0.262377,61585.0,61584.0,0.17633898]
[1719493471285,0.587131,61585.0,61584.0,0.17633898]
[1719493471486,0.911885,61585.0,61584.0,0.17654395]
[1719493471687,0.911885,61585.0,61584.0,0.16254395]
[1719493472006,1.236639,61585.0,61584.0,0.16233898]
[1719493473591,1.236639,61585.0,61575.0,0.08130346]
[1719493473592,1.136712,61581.0,61580.0,0.00020497]
[1719493473965,1.136712,61581.0,61580.0,0.29735849]
[1719493473966,1.19849706,61581.0,61580.0,0.29735849]
[1719493474162,1.19849706,61581.0,61580.0,0.16233898]
[1719493474365,1.136712,61581.0,61580.0,0.16233898]
[1719493474478,1.136712,61581.0,61580.0,0.16254395]
[1719493474689,0.487162,61581.0,61580.0,0.29756205]
[1719493474920,0.487162,61581.0,61580.0,0.29735708]
[1719493475135,0.811937,61581.0,61580.0,0.29756205]
[1719493475736,0.811937,61581.0,61580.0,0.33544138]
[1719493475737,0.487162,61581.0,61580.0,0.33544138]
[1719493475948,0.1,61585.0,61580.0,0.33544138]
[1719493475949,0.587134,61585.0,61584.0,0.00020497]
[1719493476154,0.587134,61585.0,61584.0,0.16254395]
[1719493476155,0.911891,61585.0,61584.0,0.16254395]
[1719493476578,0.93735302,61585.0,61584.0,0.29755349]
[1719493476780,0.28783902,61585.0,61584.0,0.29755349]
[1719493477031,0.93734702,61585.0,61584.0,0.29755349]
[1719493477229,0.93734702,61585.0,61584.0,0.29725049]
[1719493478084,0.02546202,61585.0,61584.0,0.37195049]
[1719493478311,0.02546202,61585.0,61584.0,0.50594554]
[1719493478756,0.02546202,61585.0,61584.0,0.5059274]
[1719493478960,0.02546202,61585.0,61584.0,0.5289274]
[1719493479304,0.02546202,61585.0,61584.0,0.62022982]
[1719493479726,0.02546202,61585.0,61584.0,0.99509325]
[1719493479966,0.02546202,61585.0,61584.0,0.83271425]
[1719493480171,0.02546202,61585.0,61584.0,0.99509325]
[1719493480372,0.02546202,61585.0,61584.0,1.33385225]
[1719493480881,0.02546202,61585.0,61584.0,1.00909325]
[1719493481107,0.02546202,61585.0,61584.0,1.53385225]
[1719493481319,0.00084,61594.0,61593.0,0.507068]
[1719493481538,0.00084,61594.0,61593.0,1.44598857]
[1719493481751,0.00084,61594.0,61593.0,1.26891981]
[1719493481972,0.0006022,61607.0,61594.0,0.01]
[1719493481973,0.48842294,61607.0,61594.0,0.01]
[1719493482176,0.0006022,61607.0,61599.0,0.16233898]
[1719493482385,0.162322,61606.0,61601.0,0.01942833]
[1719493482587,0.0006022,61607.0,61602.0,0.3452705]
[1719493482789,0.0006022,61607.0,61603.0,0.3374118]
[1719493482995,0.0006022,61607.0,61603.0,0.68507978]
[1719493483202,0.0006022,61607.0,61603.0,0.70507978]
[1719493483435,0.0006022,61607.0,61603.0,0.78147978]
[1719493483645,0.01,61631.0,61603.0,0.78147978]
[1719493483646,0.162285,61620.0,61612.0,0.0764]
[1719493483847,0.162287,61620.0,61617.0,0.08130346]
[1719493484059,0.324566,61621.0,61618.0,0.49975078]
[1719493484265,0.324566,61621.0,61618.0,0.16233898]
[1719493484266,0.162287,61619.0,61618.0,0.16233898]
[1719493484468,0.324566,61621.0,61618.0,0.49964823]
[1719493484673,0.162287,61619.0,61618.0,0.16233898]
[1719493484849,0.324553,61624.0,61618.0,0.50964318]
[1719493484850,0.162275,61624.0,61618.0,0.50964318]
[1719493485099,0.162278,61623.0,61619.0,0.3373042]
[1719493485301,0.162278,61623.0,61617.0,0.08130346]
[1719493485302,0.324535,61627.0,61620.0,0.55973784]
[1719493485505,0.324543,61625.0,61624.0,0.08130346]
[1719493485709,0.586814,61625.0,61624.0,0.58094664]
[1719493485913,0.586814,61625.0,61624.0,0.63952789]
[1719493486124,0.911357,61625.0,61624.0,0.63952789]
[1719493486334,0.911357,61625.0,61624.0,0.49964318]
[1719493486539,1.2359,61625.0,61624.0,0.49964318]
[1719493487134,1.2359,61625.0,61624.0,0.49934018]
[1719493487373,0.911357,61625.0,61624.0,0.16203598]
[1719493487505,0.586814,61625.0,61624.0,0.51555621]
[1719493487711,0.91128453,61625.0,61624.0,0.51555621]
[1719493487911,0.91128453,61625.0,61624.0,0.33731603]
[1719493488108,0.58674153,61625.0,61624.0,0.29726539]
[1719493488346,0.58674153,61625.0,61624.0,0.51909304]
[1719493488347,0.91128453,61625.0,61624.0,0.51909304]
[1719493488663,1.23582753,61625.0,61624.0,0.29726539]
[1719493488795,1.23582753,61625.0,61624.0,0.32893532]
[1719493489206,1.56037053,61625.0,61624.0,0.13492641]
[1719493489413,1.58037053,61625.0,61624.0,0.13492641]
[1719493489624,2.13203853,61625.0,61624.0,0.13492641]
[1719493489823,2.13203853,61625.0,61613.0,0.01943395]
[1719493489824,0.973788,61615.0,61613.0,0.01943395]
[1719493490038,0.01,61621.0,61609.0,0.08130346]
[1719493490039,0.486909,61613.0,61612.0,0.01943395]
[1719493490264,0.811555,61610.0,61609.0,0.08130346]
[1719493490469,0.486933,61610.0,61609.0,0.58103706]
[1719493490671,0.811555,61610.0,61609.0,0.58103706]
[1719493490872,0.781555,61610.0,61609.0,0.58103706]
[1719493491436,1.106177,61610.0,61609.0,0.58103706]
[1719493491840,0.781555,61610.0,61609.0,0.58103706]
[1719493492050,1.106177,61610.0,61609.0,0.59503706]
[1719493492432,0.781555,61610.0,61609.0,0.59503706]
[1719493492631,0.781555,61610.0,61609.0,0.65454077]
[1719493492632,0.456933,61610.0,61609.0,0.65454077]
[1719493493133,0.456933,61610.0,61609.0,0.31714615]
[1719493493353,0.324607,61613.0,61609.0,0.59501381]
[1719493493585,0.1,61612.0,61610.0,0.49971035]
[1719493493762,0.1,61612.0,61611.0,0.33737137]
[1719493493763,0.586918,61612.0,61611.0,0.33737137]
[1719493493958,0.586918,61612.0,61611.0,0.49971035]
[1719493494162,0.262306,61612.0,61611.0,0.49971035]
[1719493494361,0.586918,61612.0,61611.0,0.55781173]
[1719493494744,0.1,61612.0,61611.0,0.55781173]
[1719493494959,0.324566,61621.0,61611.0,0.55781173]
[1719493494960,0.32457,61620.0,61611.0,0.55781173]
[1719493495162,0.163112,61625.0,61619.0,0.08130346]
[1719493495365,0.162274,61624.0,61620.0,0.33737137]
[1719493495619,0.262274,61624.0,61621.0,0.38023885]
[1719493495822,0.262274,61624.0,61622.0,0.33737137]
[1719493495823,0.1,61624.0,61622.0,0.33737137]
[1719493495965,0.1,61624.0,61623.0,0.33737137]
[1719493496147,0.1,61624.0,61622.0,0.01]
[1719493496356,0.1,61624.0,61623.0,0.49962481]
[1719493496549,0.00084,61625.0,61623.0,0.49962481]
[1719493496550,0.00084,61625.0,61623.0,0.16233898]
[1719493496856,0.00084,61625.0,61624.0,0.33727635]
[1719493497063,0.00084,61625.0,61624.0,0.49961533]
[1719493497391,0.00084,61625.0,61624.0,0.76940483]
[1719493497596,0.00084,61625.0,61624.0,1.3862224]
[1719493497966,0.00084,61625.0,61624.0,1.5768224]
[1719493498492,0.02545179,61630.0,61626.0,0.01]
[1719493498720,0.02545179,61630.0,61629.0,0.24364244]
[1719493498923,0.162237,61639.0,61629.0,0.74317879]
[1719493499121,0.486706,61639.0,61638.0,0.10071875]
[1719493499324,0.486706,61639.0,61638.0,0.58086039]
[1719493499325,0.1,61639.0,61638.0,0.58086039]
[1719493499523,0.1,61639.0,61638.0,0.6002752]
[1719493499720,0.262234,61639.0,61638.0,0.6002752]
[1719493500223,0.262234,61639.0,61638.0,0.58086039]
[1719493500429,0.911172,61639.0,61638.0,0.49955693]
[1719493500619,0.1,61639.0,61638.0,0.49955693]
[1719493500846,0.10839,61640.0,61638.0,0.49955693]
[1719493501013,0.162238,61638.0,61632.0,0.01]
[1719493501217,0.10839,61640.0,61633.0,0.3372047]
[1719493501428,0.162235,61639.0,61634.0,0.33719883]
[1719493501747,0.10839,61640.0,61630.0,0.20813239]
[1719493501748,0.00839,61640.0,61635.0,0.33719883]
[1719493501951,0.00839,61640.0,61636.0,0.33719883]
[1719493501952,0.170622,61640.0,61636.0,0.33719883]
[1719493502103,0.00839,61640.0,61637.0,0.33719883]
[1719493502306,0.170623,61640.0,61638.0,0.33719883]
[1719493502467,0.170622,61640.0,61639.0,0.58084127]
[1719493502678,0.170622,61640.0,61639.0,0.6389254]
[1719493502882,0.495086,61640.0,61639.0,0.6389254]
[1719493503083,1.144014,61640.0,61639.0,0.49953781]
[1719493503291,1.261314,61640.0,61639.0,0.13487953]
[1719493503745,1.244014,61640.0,61639.0,0.13487953]
[1719493503945,0.91955,61640.0,61639.0,0.29721851]
[1719493504099,0.91955,61640.0,61639.0,0.1665423]
[1719493504100,1.244014,61640.0,61639.0,0.1665423]
[1719493504302,0.486775,61630.0,61629.0,0.08130346]
[1719493504525,0.486775,61630.0,61629.0,0.58087499]
[1719493504725,0.486775,61630.0,61629.0,0.16233898]
[1719493504726,0.811292,61630.0,61629.0,0.16233898]
[1719493504946,0.911292,61630.0,61629.0,0.4995781]
[1719493505125,0.00839,61640.0,61629.0,0.562382]
[1719493505126,0.324498,61634.0,61629.0,0.562382]
[1719493505459,0.486768,61631.0,61630.0,0.4995781]
[1719493505662,1.235792,61631.0,61630.0,0.33723912]
[1719493505860,1.235792,61631.0,61630.0,0.13489565]
[1719493506158,1.587604,61631.0,61630.0,0.13489565]
[1719493506388,1.597604,61631.0,61630.0,0.13489565]
[1719493506596,1.253092,61631.0,61630.0,0.13489565]
[1719493506714,1.253092,61631.0,61630.0,0.35668179]
[1719493506928,1.253092,61631.0,61630.0,0.51449038]
[1719493506929,0.586768,61631.0,61630.0,0.51449038]
[1719493507120,0.586768,61631.0,61630.0,0.16233898]
[1719493507328,0.324481,61637.0,61630.0,0.49959201]
[1719493507556,0.486721,61637.0,61636.0,0.1007163]
[1719493507763,0.911201,61637.0,61636.0,0.58089547]
[1719493508403,0.58672,61637.0,61636.0,0.58089547]
[1719493508620,0.58672,61637.0,61636.0,0.49959201]
[1719493508825,0.58672,61637.0,61636.0,0.13490121]
[1719493508826,1.23568,61637.0,61636.0,0.13490121]
[1719493509252,1.23568,61637.0,61636.0,0.31267179]
[1719493509462,1.23568,61637.0,61636.0,0.13490121]
[1719493510116,1.23568,61637.0,61628.0,0.08130346]
[1719493510117,0.324512,61631.0,61630.0,0.01941777]
[1719493510343,0.324512,61631.0,61630.0,0.5190241]
[1719493510344,0.586768,61631.0,61630.0,0.5190241]
[1719493510555,0.91128,61631.0,61630.0,0.29724592]
[1719493510811,0.586768,61631.0,61630.0,0.29724592]
[1719493511436,0.53406019,61631.0,61630.0,0.29724592]
[1719493511579,0.85857219,61631.0,61630.0,0.29724592]
[1719493512187,1.08308419,61631.0,61630.0,0.13490694]
[1719493512352,1.08308419,61631.0,61630.0,0.15033948]
[1719493512561,1.08308419,61631.0,61630.0,0.15533948]
[1719493512772,1.08308419,61631.0,61630.0,0.14723948]
[1719493512773,0.75857219,61631.0,61630.0,0.14723948]
[1719493512980,0.75857219,61631.0,61630.0,0.14223948]
[1719493513180,0.43406019,61631.0,61630.0,0.30457846]
[1719493513400,0.324489,61636.0,61630.0,0.31857846]
[1719493513618,0.486731,61636.0,61635.0,0.08130346]
[1719493513874,0.486731,61636.0,61635.0,0.24364244]
[1719493513875,0.91122,61636.0,61635.0,0.24364244]
[1719493514925,0.91122,61636.0,61631.0,0.03379969]
[1719493514926,0.424489,61636.0,61631.0,0.03379969]
[1719493515164,0.424489,61636.0,61631.0,0.16233898]
[1719493515165,0.811265,61632.0,61631.0,0.16233898]
[1719493515577,0.162253,61632.0,61631.0,0.16233898]
[1719493515994,0.486759,61632.0,61631.0,0.16233898]
[1719493516194,0.324492,61635.0,61631.0,0.16233898]
[1719493516460,0.324492,61635.0,61630.0,0.014]
[1719493516461,0.486735,61635.0,61634.0,0.08130346]
[1719493516660,0.586735,61635.0,61634.0,0.24364244]
[1719493517796,0.162238,61638.0,61634.0,0.32224244]
[1719493517996,0.00839,61640.0,61634.0,0.32224244]
[1719493517997,0.1,61637.0,61635.0,0.16233898]
[1719493518215,0.00839,61640.0,61635.0,0.16233898]
[1719493518216,0.162242,61636.0,61635.0,0.16233898]
[1719493518448,0.262242,61636.0,61635.0,0.16233898]
[1719493518691,0.262242,61636.0,61635.0,0.17333898]
[1719493518962,0.262242,61636.0,61635.0,0.16233898]
[1719493519635,0.00839,61640.0,61635.0,0.20407322]
[1719493520067,0.00839,61640.0,61636.0,0.16233898]
[1719493520268,0.00839,61640.0,61635.0,0.04173424]
[1719493520269,0.00839,61640.0,61639.0,0.64904198]
[1719493520489,0.00839,61640.0,61639.0,0.66904198]
[1719493520697,0.00839,61640.0,61639.0,0.64904198]
[1719493520905,0.00839,61640.0,61639.0,0.7631787]
[1719493521106,0.32439,61654.0,61639.0,0.7631787]
[1719493521107,0.0122984,61656.0,61655.0,0.991062]
[1719493521305,0.0122984,61656.0,61655.0,1.05265862]
[1719493521515,0.0122984,61656.0,61655.0,1.68789362]
[1719493521741,0.0122984,61656.0,61655.0,0.86883046]
[1719493521940,0.0122984,61656.0,61655.0,0.25140346]
[1719493522188,0.0122984,61656.0,61655.0,0.44182161]
[1719493522598,0.0122984,61656.0,61655.0,0.41374244]
[1719493522842,0.0122984,61656.0,61655.0,0.24364244]
[1719493522843,0.1744884,61656.0,61655.0,0.24364244]
[1719493523027,0.4988684,61656.0,61655.0,0.24364244]
[1719493523185,0.0122984,61656.0,61655.0,0.24364244]
[1719493523385,0.0122984,61656.0,61655.0,0.4118295]
[1719493523593,0.0122984,61656.0,61655.0,0.5970215]
[1719493523910,0.0122984,61656.0,61655.0,0.4218295]
[1719493524103,0.0122984,61656.0,61655.0,0.5740215]
[1719493524467,0.0122984,61656.0,61655.0,0.4118295]
[1719493524672,0.0122984,61656.0,61655.0,0.37847526]
[1719493524880,0.4988684,61656.0,61655.0,0.37847153]
[1719493525118,0.4988684,61656.0,61655.0,0.16233898]
[1719493525119,0.8232484,61656.0,61655.0,0.16233898]
[1719493525380,0.8232484,61656.0,61649.0,0.08130346]
[1719493525381,0.0122984,61656.0,61649.0,0.08130346]
[1719493525601,0.00257864,61673.0,61658.0,0.334366]
[1719493525798,0.144471,61685.0,61669.0,0.08130346]
[1719493525799,0.154471,61685.0,61669.0,0.08130346]
[1719493525997,0.154471,61685.0,61669.0,0.37831414]
[1719493525998,0.162129,61680.0,61669.0,0.37831414]
[1719493526207,0.162129,61680.0,61669.0,0.4441851]
[1719493526411,0.01,61685.0,61669.0,1.65192712]
[1719493526699,0.01,61685.0,61669.0,0.54329712]
[1719493526700,0.324228,61685.0,61669.0,0.54329712]
[1719493526854,0.324259,61679.0,61669.0,0.54329712]
[1719493527287,0.324276,61676.0,61669.0,0.54329712]
[1719493527446,0.324293,61673.0,61669.0,0.54329712]
[1719493527647,0.324293,61673.0,61669.0,0.24364244]
[1719493527648,0.486659,61670.0,61669.0,0.24364244]
[1719493527846,0.486659,61670.0,61669.0,0.37844853]
[1719493528116,0.486659,61670.0,61669.0,0.24364244]
[1719493528297,0.820965,61670.0,61669.0,0.16233898]
[1719493528502,0.820965,61670.0,61657.0,0.076]
[1719493528503,0.486553,61658.0,61657.0,0.08130346]
[1719493528710,0.486553,61658.0,61657.0,0.24364244]
[1719493529041,0.0266,61664.0,61657.0,0.24364244]
[1719493529042,0.162183,61659.0,61657.0,0.37848049]
[1719493529317,0.486553,61658.0,61657.0,0.11915151]
[1719493529527,0.810922,61658.0,61657.0,0.37847998]
[1719493530085,0.486553,61658.0,61657.0,0.37847998]
[1719493530312,0.0002,61670.0,61659.0,0.01]
[1719493530551,0.524185,61694.0,61676.0,0.00383572]
[1719493530552,0.00616428,61686.0,61676.0,0.00383572]
[1719493530761,0.486396,61678.0,61677.0,0.24364244]
[1719493530961,0.48782074,61690.0,61677.0,0.24364244]
[1719493530962,0.162122,61682.0,61677.0,0.33444244]
[1719493531163,0.324233,61684.0,61680.0,0.00383572]
[1719493531164,0.162124,61681.0,61680.0,0.00383572]
[1719493531495,0.486372,61681.0,61680.0,0.16233898]
[1719493531680,0.486372,61681.0,61680.0,0.16731481]
[1719493532358,0.324184,61694.0,61692.0,0.00383572]
[1719493532603,0.49469719,61693.0,61692.0,0.16233898]
[1719493533385,0.81888219,61693.0,61692.0,0.16233898]
[1719493533585,0.81888219,61693.0,61680.0,0.0343254]
[1719493533586,0.486372,61681.0,61680.0,0.0343254]
[1719493533796,0.486372,61681.0,61680.0,0.16233898]
[1719493534000,0.486372,61681.0,61680.0,0.1673699]
[1719493534204,1.134868,61681.0,61680.0,0.1673699]
[1719493534617,0.324248,61681.0,61669.0,0.08513918]
[1719493534821,0.810765,61670.0,61669.0,0.08130346]
[1719493535025,1.135071,61670.0,61669.0,0.08981738]
[1719493535217,1.135071,61670.0,61669.0,0.08130346]
[1719493535774,1.135071,61670.0,61669.0,0.24364244]
[1719493535978,0.486546,61659.0,61658.0,0.00383572]
[1719493536178,0.486546,61659.0,61658.0,0.1661747]
[1719493536179,0.81091,61659.0,61658.0,0.1661747]
[1719493537235,0.81091,61659.0,61658.0,0.16173212]
[1719493537589,0.81091,61659.0,61658.0,0.18603568]
[1719493537792,0.81091,61659.0,61658.0,0.16173212]
[1719493539232,0.81707428,61659.0,61658.0,0.17573212]
[1719493539404,0.81091,61659.0,61658.0,0.17573212]
[1719493539608,1.135274,61659.0,61658.0,0.17573212]
[1719493540463,1.135274,61659.0,61658.0,0.014]
[1719493540464,1.47580228,61659.0,61658.0,0.014]
[1719493540659,1.57580228,61659.0,61658.0,0.014]
[1719493540805,1.99811428,61659.0,61658.0,0.014]
[1719493541003,1.99421428,61659.0,61658.0,0.014]
[1719493541452,1.77282228,61659.0,61658.0,0.014]
[1719493541861,1.67240228,61659.0,61658.0,0.014]
[1719493542058,1.326874,61659.0,61658.0,0.014]
[1719493542767,1.326874,61659.0,61648.0,0.08513918]
[1719493542768,0.811015,61651.0,61650.0,0.00383572]
[1719493542973,0.162208,61649.0,61648.0,0.08513918]
[1719493543182,0.162208,61649.0,61648.0,0.08665727]
[1719493543183,0.486625,61649.0,61648.0,0.08665727]
[1719493543395,0.486625,61649.0,61648.0,0.08130346]
[1719493543603,0.811042,61649.0,61648.0,0.08130346]
[1719493543810,0.811042,61649.0,61648.0,0.08981738]
[1719493544660,1.135459,61649.0,61648.0,0.16233898]
[1719493544881,0.811172,61639.0,61634.0,0.08130346]
[1719493545090,0.00616428,61644.0,61634.0,0.08130346]
[1719493545091,0.162245,61635.0,61634.0,0.08130346]
[1719493545302,0.486735,61635.0,61634.0,0.08513918]
[1719493546181,0.486735,61635.0,61634.0,0.24747816]
[1719493546791,0.811225,61635.0,61634.0,0.24747816]
[1719493546962,0.811225,61635.0,61634.0,0.24364244]
[1719493547211,0.486735,61635.0,61634.0,0.24364244]
[1719493547428,0.486735,61635.0,61634.0,0.24747816]
[1719493547625,0.486735,61635.0,61634.0,0.24364244]
[1719493548054,0.486735,61635.0,61634.0,0.24747816]
[1719493548658,0.486735,61635.0,61634.0,0.24364244]
[1719493548659,0.811225,61635.0,61634.0,0.24364244]
[1719493549402,1.135715,61635.0,61634.0,0.24364244]
[1719493550850,1.135715,61635.0,61634.0,0.26800668]
[1719493551043,0.811225,61635.0,61634.0,0.26800668]
[1719493551253,0.324457,61642.0,61634.0,0.26800668]
[1719493551254,0.162243,61636.0,61635.0,0.00383572]
[1719493551459,0.162243,61636.0,61635.0,0.2632747]
[1719493551606,0.162243,61636.0,61635.0,0.27336609]
[1719493551808,0.162243,61636.0,61635.0,0.30883305]
[1719493552011,0.486728,61636.0,61635.0,0.30883305]
[1719493552243,0.486728,61636.0,61635.0,0.30499733]
[1719493552658,0.486728,61636.0,61635.0,0.20789733]
[1719493552863,0.811213,61636.0,61635.0,0.17243037]
[1719493553062,0.00616428,61644.0,61635.0,0.17243037]
[1719493553266,0.486727,61636.0,61635.0,0.01009139]
[1719493553488,0.811212,61636.0,61635.0,0.01009139]
[1719493553701,1.135697,61636.0,61635.0,0.01009139]
[1719493553916,1.135697,61636.0,61634.0,0.08513918]
[1719493553917,0.811225,61635.0,61634.0,0.08513918]
[1719493554275,1.135715,61635.0,61634.0,0.08513918]
[1719493554483,1.135715,61635.0,61634.0,0.08130346]
[1719493555202,1.135715,61635.0,61634.0,0.16233898]
[1719493556032,1.135715,61635.0,61634.0,0.17857288]
[1719493556033,0.811225,61635.0,61634.0,0.17857288]
[1719493556238,0.811225,61635.0,61634.0,0.16233898]
[1719493556797,0.82738928,61635.0,61634.0,0.16233898]
[1719493557024,1.15187928,61635.0,61634.0,0.16233898]